bitfinex-derivatives/quotes_ETHF0:USTF0_20250626
["timestamp","ask_amount","ask_price","bid_price","bid_amount"]
[1750967724630,4.02768,2438.6,2438.3,34.56930957]
[1750967724934,4.02768,2438.6,2438.5,0.81989]
[1750967726036,0.81988,2438.6,2438.5,0.81989]
[1750967726236,3.2078,2439.2,2438.5,30.421]
[1750967726432,0.8197,2439.1,2439.0,0.81969]
[1750967726634,0.8197,2439.1,2439.0,26.25569]
[1750967727328,0.81964,2439.3,2439.1,0.81969]
[1750967727529,0.81964,2439.3,2439.2,25.436]
[1750967728340,0.8196,2439.4,2439.2,25.436]
[1750967728642,0.81962,2439.3,2439.2,26.25564]
[1750967729032,0.81962,2439.3,2439.2,25.436]
[1750967729729,0.81962,2439.3,2439.2,26.25565]
[1750967730235,11.65980088,2439.5,2438.8,3.2078]
[1750967730537,0.81972,2439.0,2438.9,32.126]
[1750967731439,0.81972,2439.0,2438.5,1.62217897]
[1750967731440,0.81986,2438.6,2438.5,1.62217897]
[1750967731633,3.2078,2438.9,2438.4,1.62217897]
[1750967731833,0.81987,2438.6,2438.4,1.62217897]
[1750967732138,0.81987,2438.6,2438.4,2.44207897]
[1750967732330,1.4598,2438.8,2438.5,0.81989]
[1750967732526,0.81987,2438.6,2438.4,2.44207897]
[1750967732840,0.81987,2438.6,2438.4,3.24820957]
[1750967733142,0.81984,2438.7,2438.5,0.81989]
[1750967733338,0.81984,2438.7,2438.6,1.62246991]
[1750967733742,0.81984,2438.7,2438.6,2.44231991]
[1750967733933,0.81984,2438.7,2438.6,1.62246991]
[1750967735745,0.81985,2438.6,2438.5,1.62246991]
[1750967735940,6.07835,2438.6,2438.5,1.62246991]
[1750967739244,0.81989,2438.5,2438.4,3.24821957]
[1750967739636,0.81989,2438.5,2438.3,32.95193]
[1750967739949,0.81989,2438.5,2438.4,0.81992]
[1750967740850,0.81991,2438.5,2438.4,0.81991]
[1750967741344,4.02768,2438.6,2438.5,0.81989]
[1750967741541,0.8199,2438.5,2438.4,0.8199]
[1750967742346,0.8199,2438.5,2438.4,2.44340032]
[1750967742647,4.02767,2438.6,2438.5,0.81989]
[1750967742852,0.81989,2438.5,2438.4,3.11299032]
[1750967743051,4.02767,2438.6,2438.5,0.81989]
[1750967743350,3.2078,2438.6,2438.5,0.81989]
[1750967743743,4.02757,2438.9,2438.8,0.81979]
[1750967744550,0.81979,2438.8,2438.7,32.8888]
[1750967744854,4.02757,2438.9,2438.8,0.81979]
[1750967745646,3.2078,2438.9,2438.8,0.81979]
[1750967745846,4.02755,2438.9,2438.8,0.81979]
[1750967746043,3.2078,2438.9,2438.8,0.81979]
[1750967746942,3.2078,2438.9,2438.8,2.15499]
[1750967747547,0.8197,2439.1,2438.9,0.81972]
[1750967747754,4.6496,2439.3,2439.0,25.385]
[1750967747755,0.81968,2439.2,2439.0,25.385]
[1750967748458,0.81969,2439.1,2439.0,25.385]
[1750967752361,0.81972,2439.0,2438.9,0.7322]
[1750967752559,0.81972,2439.0,2438.9,32.7822]
[1750967753059,0.81972,2439.0,2438.9,33.60195]
[1750967755158,0.81972,2439.0,2438.9,32.7822]
[1750967756463,0.81972,2439.0,2438.9,32.05]
[1750967757863,0.81972,2439.0,2438.9,32.86975]
[1750967758061,0.81972,2439.0,2438.9,32.05]
[1750967760368,0.81972,2439.0,2438.9,6.673]
[1750967760660,4.02752,2439.0,2438.9,25.375]
[1750967761165,5.25712,2439.0,2438.7,26.58954669]
[1750967761365,0.81979,2438.8,2438.7,26.58954669]
[1750967762456,0.81979,2438.8,2438.7,1.21554669]
[1750967762661,0.81979,2438.8,2438.6,1.21554669]
[1750967762662,0.81982,2438.7,2438.6,1.21554669]
[1750967762967,6.10642,2438.7,2438.6,1.21554669]
[1750967763359,0.81985,2438.6,2438.5,1.21554669]
[1750967763564,2.22265,2438.6,2438.5,1.21554669]
[1750967763760,7.22265,2438.6,2438.5,1.21554669]
[1750967765359,2.22265,2438.6,2438.5,1.21554669]
[1750967766370,3.8838,2438.7,2438.5,2.03543669]
[1750967766371,1.49584,2438.7,2438.5,2.03543669]
[1750967766666,0.81985,2438.6,2438.5,2.03543669]
[1750967766861,0.81985,2438.6,2438.5,0.81989]
[1750967767556,1.49583,2438.7,2438.6,0.81986]
[1750967767868,0.6785,2438.8,2438.6,0.81986]
[1750967767869,1.49831,2438.8,2438.6,0.81986]
[1750967768064,2.27354,2439.0,2438.7,6.673]
[1750967768361,5.25689,2439.3,2438.7,7.4041]
[1750967768362,2.43619829,2439.2,2438.7,7.4041]
[1750967768668,0.81973,2439.0,2438.9,0.81973]
[1750967768869,2.1681,2439.1,2438.9,0.81973]
[1750967769265,2.1681,2439.1,2439.0,0.81972]
[1750967769867,4.602,2439.3,2438.8,26.0852]
[1750967769868,5.42164,2439.3,2439.1,0.81966]
[1750967770065,3.2078,2439.3,2439.2,0.81965]
[1750967770765,4.02742,2439.3,2439.2,0.81965]
[1750967770965,3.2078,2439.3,2439.2,0.81965]
[1750967771866,0.81967,2439.2,2439.0,34.08224669]
[1750967772068,1.389,2439.2,2439.0,32.8667]
[1750967772365,3.2078,2439.3,2439.1,0.81969]
[1750967772564,4.02744,2439.3,2439.1,0.81969]
[1750967772769,0.81965,2439.2,2439.1,0.81969]
[1750967772971,3.2078,2439.3,2439.2,0.81965]
[1750967773266,4.02744,2439.3,2439.2,0.81965]
[1750967774066,0.81965,2439.2,2439.1,0.81967]
[1750967774672,0.81965,2439.2,2439.0,32.86669]
[1750967774871,0.81969,2439.1,2439.0,32.047]
[1750967775075,3.2078,2439.3,2439.0,32.039]
[1750967775266,0.81971,2439.1,2439.0,32.8587]
[1750967775571,0.81971,2439.1,2439.0,32.039]
[1750967776670,0.81971,2439.1,2439.0,32.85872]
[1750967777677,0.81965,2439.2,2439.0,32.85869]
[1750967777966,3.2078,2439.3,2439.2,0.81965]
[1750967778170,3.2078,2439.3,2439.2,26.19065]
[1750967778476,3.2078,2439.3,2439.1,32.85669]
[1750967778666,4.02743,2439.3,2439.2,0.81965]
[1750967778968,0.81965,2439.2,2439.1,32.85666]
[1750967779673,3.2078,2439.3,2439.2,0.81965]
[1750967781074,0.81954,2439.6,2439.2,3.2078]
[1750967781269,3.8728,2439.9,2439.3,28.85042]
[1750967781573,0.81947,2439.8,2439.7,0.81949]
[1750967781764,0.81947,2439.8,2439.7,25.37]
[1750967781969,0.81947,2439.8,2439.7,26.18949]
[1750967782276,3.2078,2439.9,2439.8,0.81945]
[1750967782470,2.0731,2440.0,2439.7,25.37]
[1750967782674,3.9151,2440.2,2439.8,0.7274]
[1750967782871,3.9151,2440.2,2440.0,0.81938]
[1750967783072,3.2078,2440.2,2440.1,26.18735]
[1750967783277,3.87609829,2440.7,2440.1,28.5758]
[1750967783468,3.87609829,2440.7,2440.3,0.81926]
[1750967783469,0.81923,2440.5,2440.3,0.81926]
[1750967783669,0.81925,2440.4,2440.3,25.368]
[1750967784372,0.81923,2440.5,2440.3,26.18728]
[1750967784680,2.8681,2440.7,2440.3,26.18726]
[1750967785066,2.8681,2440.7,2440.3,25.368]
[1750967785373,0.81922,2440.5,2440.4,7.48423]
[1750967785567,0.81922,2440.5,2440.4,8.21783]
[1750967786272,0.8192,2440.6,2440.4,8.21783]
[1750967786473,0.7332,2440.9,2440.7,0.81915]
[1750967786474,0.81911,2440.9,2440.7,0.81915]
[1750967786670,0.81911,2440.9,2440.8,0.81912]
[1750967786876,0.81912,2440.8,2440.7,25.364]
[1750967787566,0.81912,2440.8,2440.6,32.029]
[1750967787567,0.81915,2440.7,2440.6,32.029]
[1750967787764,3.52545,2440.7,2440.6,32.029]
[1750967787971,0.81922,2440.5,2440.4,0.7336]
[1750967788173,0.81922,2440.5,2440.4,32.7616]
[1750967788666,0.8192,2440.6,2440.5,0.81921]
[1750967788872,0.81922,2440.5,2440.4,32.7616]
[1750967789269,3.2078,2440.8,2440.4,32.7616]
[1750967789468,0.81922,2440.5,2440.4,32.7616]
[1750967790979,0.81922,2440.5,2440.4,32.028]
[1750967791178,0.81932,2440.2,2440.1,4.5854]
[1750967791378,0.81938,2440.0,2439.9,1.21554669]
[1750967791682,0.81938,2440.0,2439.9,32.023]
[1750967792180,0.81938,2440.0,2439.9,32.02]
[1750967794586,0.81938,2440.1,2439.9,32.83942]
[1750967794780,0.81938,2440.1,2440.0,0.81938]
[1750967794980,0.81938,2440.0,2439.9,32.02]
[1750967795176,0.81938,2440.0,2439.9,32.83942]
[1750967795884,0.81938,2440.0,2439.9,32.02]
[1750967796180,0.81938,2440.0,2439.9,32.83942]
[1750967796586,1.3327,2440.3,2439.9,32.02]
[1750967796777,0.81935,2440.1,2440.0,0.81936]
[1750967797286,2.152,2440.3,2440.2,0.81932]
[1750967797488,1.3327,2440.3,2440.2,25.356]
[1750967797685,2.15198,2440.3,2440.2,25.356]
[1750967800080,2.15198,2440.3,2440.2,26.17532]
[1750967800281,2.15198,2440.3,2440.2,25.356]
[1750967802277,0.81942,2439.9,2439.8,1.83987665]
[1750967802473,0.8194,2440.0,2439.9,0.81939]
[1750967802684,2.26917,2440.1,2440.0,0.81936]
[1750967802887,2.04819,2440.4,2440.0,0.81936]
[1750967803078,0.81933,2440.2,2440.1,26.17332]
[1750967803389,0.81933,2440.2,2440.1,25.354]
[1750967804588,0.81933,2440.2,2440.1,26.17335]
[1750967805287,0.81933,2440.2,2440.1,25.354]
[1750967805483,0.81933,2440.2,2440.1,26.17335]
[1750967806083,0.81933,2440.2,2440.1,25.354]
[1750967806381,0.81933,2440.2,2440.1,26.17335]
[1750967806882,0.81933,2440.2,2440.1,25.354]
[1750967807182,0.81933,2440.2,2440.1,26.17335]
[1750967808587,0.81932,2440.2,2440.1,26.17332]
[1750967810282,0.81932,2440.2,2440.1,27.38886669]
[1750967810685,0.81932,2440.2,2440.1,26.56954669]
[1750967810989,0.81932,2440.2,2440.1,25.352]
[1750967811384,0.81932,2440.2,2440.1,26.56754669]
[1750967811784,0.81932,2440.2,2440.1,1.21554669]
[1750967811990,0.81932,2440.2,2440.1,26.56654669]
[1750967815293,0.81932,2440.2,2440.1,25.351]
[1750967815992,0.81932,2440.2,2440.1,26.17035]
[1750967816194,0.81932,2440.2,2440.1,27.79385032]
[1750967817694,0.81932,2440.2,2440.1,26.97450032]
[1750967818097,0.81935,2440.1,2440.0,1.62350032]
[1750967818296,2.95085,2440.1,2440.0,1.62350032]
[1750967818492,0.81934,2440.2,2440.1,0.81934]
[1750967818794,0.81929,2440.3,2440.2,0.81929]
[1750967819095,0.81929,2440.3,2440.2,4.20472248]
[1750967819492,0.81927,2440.4,2440.3,0.81927]
[1750967819796,0.81927,2440.4,2440.3,2.03482501]
[1750967820297,2.43619829,2441.2,2440.3,42.65043641]
[1750967820493,2.43619829,2441.5,2441.1,6.59323248]
[1750967820698,2.43619829,2441.5,2441.3,4.20436248]
[1750967820888,0.81895,2441.3,2441.2,0.6737]
[1750967821085,0.81895,2441.3,2441.1,6.66]
[1750967821086,0.81898,2441.2,2441.1,6.66]
[1750967821296,6.01007829,2441.2,2441.1,6.66]
[1750967821496,3.57388,2441.2,2441.1,6.66]
[1750967823196,2.04755,2441.1,2440.6,2.60442075]
[1750967823394,0.81918,2440.6,2440.5,6.659]
[1750967824303,5.42748,2440.6,2440.5,6.659]
[1750967824497,5.42748,2440.6,2440.5,7.87382104]
[1750967826592,6.12288,2440.6,2440.5,7.87382104]
[1750967829703,5.42748,2440.6,2440.5,8.69304104]
[1750967830103,5.42748,2440.6,2440.5,7.87382104]
[1750967830301,5.42748,2440.6,2440.5,8.69304104]
[1750967830500,5.42748,2440.6,2440.5,1.21482104]
[1750967830699,0.81922,2440.5,2440.4,1.21482104]
[1750967830901,2.28222,2440.5,2440.4,1.21482104]
[1750967836407,0.81925,2440.4,2440.3,1.21482104]
[1750967836601,0.81928,2440.3,2440.2,1.21482104]
[1750967836801,4.75838,2440.3,2440.2,1.21482104]
[1750967837209,9.75838,2440.3,2440.2,0.31669104]
[1750967837509,0.81942,2439.9,2439.8,1.61989434]
[1750967838005,0.81936,2440.1,2440.0,0.81938]
[1750967838312,0.81936,2440.1,2439.9,3.91418078]
[1750967838513,0.81936,2440.1,2440.0,0.81938]
[1750967838812,0.81936,2440.1,2440.0,1.50778]
[1750967839205,4.02711,2440.3,2440.0,0.6884]
[1750967839412,0.81933,2440.2,2440.1,1.61923905]
[1750967839614,0.81933,2440.2,2440.1,2.43858905]
[1750967839908,0.81933,2440.2,2440.1,8.27623905]
[1750967840412,0.81933,2440.2,2440.1,6.657]
[1750967840614,2.16073,2440.2,2440.1,6.657]
[1750967841007,2.87633,2440.2,2440.1,6.657]
[1750967841602,0.81938,2440.0,2439.9,8.27623905]
[1750967841815,0.81942,2439.9,2439.8,1.61923905]
[1750967842016,0.81942,2439.9,2439.6,9.08589078]
[1750967842017,0.81948,2439.7,2439.6,9.09574905]
[1750967842317,0.81947,2439.8,2439.7,0.81948]
[1750967842708,0.81948,2439.7,2439.6,8.27623905]
[1750967843201,0.81948,2439.7,2439.6,6.657]
[1750967843403,0.81948,2439.7,2439.6,8.27600054]
[1750967844407,4.02728,2439.7,2439.6,8.27600054]
[1750967844911,4.02728,2439.7,2439.6,6.657]
[1750967845109,0.81955,2439.5,2439.4,1.61900054]
[1750967845302,0.81955,2439.5,2439.4,33.64000054]
[1750967845506,0.81955,2439.5,2439.4,2.43859054]
[1750967845706,0.81955,2439.5,2439.4,1.61900054]
[1750967846116,0.81959,2439.4,2439.3,8.27700054]
[1750967846307,3.2078,2439.4,2439.1,1.61900054]
[1750967846507,0.81969,2439.1,2439.0,7.47772]
[1750967846708,0.81969,2439.1,2439.0,6.658]
[1750967847017,0.81969,2439.1,2439.0,7.47772]
[1750967847317,0.81969,2439.1,2439.0,6.658]
[1750967848315,4.02749,2439.1,2439.0,6.658]
[1750967848819,5.40559,2439.1,2439.0,6.658]
[1750967850407,0.81979,2438.8,2438.7,36.93584646]
[1750967850611,0.81976,2438.9,2438.8,0.81978]
[1750967851718,0.81979,2438.8,2438.7,36.93584646]
[1750967851921,0.81977,2438.9,2438.8,0.81978]
[1750967852117,4.5859,2439.1,2438.7,36.11604646]
[1750967852324,3.2078,2439.1,2438.9,3.38894646]
[1750967852623,4.0275,2439.1,2439.0,0.81972]
[1750967852920,4.0275,2439.1,2439.0,0.6815]
[1750967853921,0.81979,2438.8,2438.7,32.7271]
[1750967854126,0.81979,2438.8,2438.7,8.17892]
[1750967854319,0.81978,2438.9,2438.8,0.81979]
[1750967855720,2.1256,2439.0,2438.8,0.81979]
[1750967855921,2.1256,2439.0,2438.9,0.81975]
[1750967856523,3.2078,2439.1,2439.0,0.81972]
[1750967857021,4.02749,2439.1,2439.0,1.48962]
[1750967857220,0.81961,2439.4,2439.3,0.81959]
[1750967857424,3.9236,2439.5,2439.1,0.81967]
[1750967857629,0.81968,2439.2,2439.1,0.81967]
[1750967859226,0.81964,2439.3,2439.2,0.81964]
[1750967859713,0.81965,2439.3,2439.2,0.81964]
[1750967859919,1.3514,2439.4,2439.1,6.66]
[1750967860231,0.81964,2439.3,2439.2,0.81963]
[1750967860932,0.81965,2439.2,2439.1,7.47967]
[1750967861526,0.81965,2439.2,2439.1,6.66]
[1750967862432,0.81965,2439.2,2439.1,7.47969]
[1750967863634,0.81963,2439.3,2439.2,0.81962]
[1750967863829,0.81963,2439.3,2439.1,7.47967]
[1750967864036,0.81965,2439.2,2439.1,7.47967]
[1750967864429,0.81965,2439.2,2439.1,6.66]
[1750967864833,0.81965,2439.2,2439.1,7.47969]
[1750967865331,0.81965,2439.2,2439.1,6.66]
[1750967865837,3.40039,2439.4,2439.0,0.6699]
[1750967866139,0.81969,2439.1,2439.0,7.3299]
[1750967866839,0.81969,2439.1,2439.0,8.14962]
[1750967867339,0.81969,2439.1,2439.0,7.3299]
[1750967868139,0.81969,2439.1,2439.0,8.14962]
[1750967868341,0.81969,2439.1,2439.0,7.3299]
[1750967869040,0.81969,2439.1,2439.0,8.14962]
[1750967869540,0.81969,2439.1,2439.0,7.3299]
[1750967869937,0.81969,2439.1,2439.0,8.14962]
[1750967870240,0.81968,2439.2,2439.1,0.81967]
[1750967870543,3.2078,2439.5,2439.0,10.71884646]
[1750967870842,3.2078,2439.5,2439.4,0.81959]
[1750967871437,4.02735,2439.5,2439.4,2.20109]
[1750967873635,4.02735,2439.5,2439.4,8.86109]
[1750967874949,3.2078,2439.5,2439.4,8.86109]
[1750967875144,4.02735,2439.5,2439.4,8.86109]
[1750967875442,4.02735,2439.5,2439.4,8.0415]
[1750967875844,4.02735,2439.5,2439.4,8.86109]
[1750967878344,0.81955,2439.5,2439.4,8.86109]
[1750967879043,0.81955,2439.5,2439.4,8.15519]
[1750967879245,0.81955,2439.5,2439.4,7.47959]
[1750967879443,0.81955,2439.5,2439.4,6.66]
[1750967880147,0.81955,2439.5,2439.4,7.47959]
[1750967880448,0.81955,2439.5,2439.4,6.66]
[1750967880746,0.81955,2439.5,2439.4,7.47959]
[1750967882243,0.81955,2439.6,2439.5,0.81954]
[1750967882449,0.81955,2439.5,2439.4,6.66]
[1750967882843,0.81955,2439.5,2439.4,7.47959]
[1750967883852,0.81955,2439.5,2439.4,7.47956]
[1750967884049,0.81954,2439.6,2439.5,0.81954]
[1750967884845,3.2078,2439.8,2439.5,35.358947]
[1750967885049,6.10836049,2440.6,2439.5,35.358947]
[1750967885050,0.81939,2440.0,2439.9,0.81941]
[1750967885251,4.02716,2440.1,2440.0,0.81938]
[1750967885751,0.81938,2440.0,2439.9,6.659]
[1750967886145,2.91248,2440.0,2439.9,6.659]
[1750967887453,2.0931,2440.0,2439.7,32.009]
[1750967887653,0.81945,2439.8,2439.7,32.009]
[1750967887853,0.81945,2439.8,2439.7,6.659]
[1750967888354,0.81945,2439.8,2439.7,7.47848]
[1750967888752,0.81945,2439.8,2439.7,6.659]
[1750967889450,4.02725,2439.8,2439.7,6.659]
[1750967889951,6.18565,2439.8,2439.7,6.659]
[1750967892553,5.3662,2439.8,2439.3,2.31110054]
[1750967892750,0.81962,2439.3,2439.2,1.61900054]
[1750967893257,0.81964,2439.3,2439.2,0.81965]
[1750967893455,0.81965,2439.2,2439.1,36.21260646]
[1750967893657,0.81965,2439.2,2439.1,10.86760646]
[1750967893860,0.81965,2439.2,2439.1,36.21260646]
[1750967894257,2.7123,2439.4,2439.1,35.39294646]
[1750967894460,0.81965,2439.3,2439.2,0.81965]
[1750967894650,2.7123,2439.4,2439.1,36.21260646]
[1750967894852,0.81963,2439.3,2439.2,0.81964]
[1750967895052,0.81965,2439.2,2439.1,36.21261646]
[1750967895959,0.81964,2439.3,2439.2,0.81965]
[1750967896158,1.3454,2439.3,2439.1,35.39294646]
[1750967896458,2.16504,2439.3,2439.2,0.81965]
[1750967896660,1.3454,2439.3,2439.2,0.81965]
[1750967897062,3.2078,2439.8,2439.2,3.2078]
[1750967897258,0.81959,2439.4,2439.3,5.42279485]
[1750967897863,0.81957,2439.5,2439.4,0.81957]
[1750967898355,0.81952,2439.6,2439.5,0.81954]
[1750967898663,2.89971,2439.7,2439.6,0.81952]
[1750967899065,4.02728,2439.8,2439.7,0.81948]
[1750967899265,3.2078,2439.8,2439.5,28.73294646]
[1750967899567,0.81947,2439.8,2439.7,0.81948]
[1750967899759,0.7348,2440.0,2439.7,3.38894646]
[1750967899959,1.5542,2440.0,2439.9,0.81942]
[1750967900154,3.2078,2440.1,2440.0,0.81938]
[1750967900757,2.43619829,2440.6,2440.0,9.8608]
[1750967900958,3.13919829,2441.1,2440.5,6.59674646]
[1750967901262,3.13919829,2441.1,2440.9,4.20802646]
[1750967901263,0.81903,2441.1,2440.9,4.20802646]
[1750967901473,3.2078,2441.5,2441.0,6.653]
[1750967901658,3.2078,2441.5,2441.4,0.81891]
[1750967901964,2.44769248,2441.5,2441.4,7.46991]
[1750967902165,1.4477,2441.6,2441.4,7.46991]
[1750967902371,1.4477,2441.6,2441.4,6.651]
[1750967902660,0.81904,2441.1,2440.9,3.2078]
[1750967903061,0.81904,2441.1,2441.0,6.651]
[1750967903367,0.81901,2441.2,2441.0,6.651]
[1750967903567,0.81901,2441.1,2441.0,6.651]
[1750967903773,2.23941,2441.1,2441.0,6.651]
[1750967904269,0.81908,2441.0,2440.7,2.0318244]
[1750967904472,0.81908,2441.0,2440.5,1.2126944]
[1750967904473,3.2078,2440.8,2440.5,1.2126944]
[1750967904769,2.23956,2440.7,2440.5,1.2126944]
[1750967905159,2.23956,2440.7,2440.4,8.6829144]
[1750967905355,1.4204,2440.7,2440.4,6.651]
[1750967905556,0.81918,2440.6,2440.4,7.47025]
[1750967905962,0.81922,2440.5,2440.4,6.651]
[1750967907368,0.81928,2440.4,2440.3,6.651]
[1750967908268,1.4204,2440.7,2440.2,29.7854944]
[1750967908269,0.81928,2440.3,2440.2,29.7854944]
[1750967908474,2.28338,2440.3,2440.2,32.015]
[1750967909267,0.81926,2440.4,2440.2,32.015]
[1750967909475,0.81926,2440.4,2440.2,32.83431]
[1750967909665,0.81926,2440.4,2440.2,32.015]
[1750967909974,2.28336,2440.4,2440.2,32.83431]
[1750967910575,2.28336,2440.4,2440.2,32.015]
[1750967910874,1.4641,2440.4,2440.3,0.81928]
[1750967911070,2.28335,2440.4,2440.2,32.8343]
[1750967911277,1.4641,2440.4,2440.2,32.8343]
[1750967911476,1.4641,2440.4,2440.3,0.81928]
[1750967911776,0.81928,2440.3,2440.2,32.8343]
[1750967911979,0.81928,2440.3,2440.2,32.015]
[1750967913170,1.4641,2440.4,2439.9,7.60777749]
[1750967913477,0.81938,2440.0,2439.9,1.2126944]
[1750967913677,0.81937,2440.1,2440.0,31.985]
[1750967914482,0.81935,2440.1,2440.0,32.80437]
[1750967914683,0.81935,2440.1,2440.0,31.985]
[1750967915573,0.81942,2439.9,2439.8,1.2126944]
[1750967915884,0.81945,2439.8,2439.6,34.0212044]
[1750967916080,1.3558,2439.7,2439.6,32.80852]
[1750967916278,2.17529,2439.7,2439.6,31.989]
[1750967916485,1.3558,2439.7,2439.6,32.80852]
[1750967916676,3.2078,2439.9,2439.8,0.81945]
[1750967916879,3.2078,2439.9,2439.8,26.15445]
[1750967917786,1.52861,2440.3,2440.1,0.81933]
[1750967918083,0.81929,2440.3,2440.2,0.81929]
[1750967918383,0.81929,2440.3,2440.2,25.349]
[1750967918580,4.02707,2440.4,2440.3,0.81928]
[1750967918881,0.81928,2440.3,2440.2,25.349]
[1750967919284,0.81928,2440.3,2440.2,26.16832]
[1750967919581,5.46868,2440.4,2440.3,0.81928]
[1750967919883,0.81928,2440.3,2440.2,26.16831]
[1750967920279,0.81928,2440.3,2440.2,26.1683]
[1750967920489,0.81928,2440.3,2440.2,25.349]
[1750967920787,0.81928,2440.3,2440.2,26.1683]
[1750967921384,3.2078,2440.4,2440.2,26.1683]
[1750967921584,4.02707,2440.4,2440.3,0.81928]
[1750967922085,4.02707,2440.4,2440.2,26.16829]
[1750967922288,4.02707,2440.4,2440.3,0.81928]
[1750967923488,0.81928,2440.3,2440.2,26.16829]
[1750967923687,3.2078,2440.4,2440.3,0.81928]
[1750967924488,3.2078,2440.4,2440.3,4.20423147]
[1750967924980,4.02705,2440.4,2440.3,1.48608]
[1750967925180,3.2078,2440.4,2440.3,1.48608]
[1750967925386,4.02705,2440.4,2440.3,1.48608]
[1750967925582,4.02705,2440.4,2440.3,0.6668]
[1750967925790,4.02705,2440.4,2440.3,32.6678]
[1750967925986,4.02705,2440.4,2440.3,33.48708]
[1750967926182,4.02705,2440.4,2440.3,32.6678]
[1750967927194,4.02705,2440.4,2440.3,33.48708]
[1750967927392,4.02705,2440.4,2440.3,32.6678]
[1750967927792,4.02705,2440.4,2440.3,32.001]
[1750967929892,1.4039,2440.6,2440.3,0.81926]
[1750967930094,0.81928,2440.3,2440.2,32.8343]
[1750967930898,3.2078,2440.9,2440.8,0.81912]
[1750967931099,3.2078,2440.9,2440.8,36.26707147]
[1750967932305,3.2078,2440.9,2440.8,32.88212]
[1750967932813,3.2078,2440.9,2440.8,34.09391763]
[1750967935517,0.81904,2441.1,2441.0,0.81905]
[1750967935718,0.81904,2441.1,2441.0,26.20005]
[1750967936018,0.81904,2441.1,2441.0,25.381]
[1750967936207,0.81905,2441.0,2440.9,0.81906]
[1750967936408,0.81905,2441.0,2440.9,32.85206]
[1750967937327,0.81903,2441.1,2441.0,0.81903]
[1750967937819,0.81905,2441.0,2440.9,32.85206]
[1750967938019,2.15215,2441.0,2440.9,32.85206]
[1750967938226,2.15215,2441.0,2440.9,32.033]
[1750967938613,2.15215,2441.0,2440.8,2.03089763]
[1750967938614,0.81908,2440.9,2440.8,2.03089763]
[1750967938814,2.24128,2440.9,2440.8,6.66]
[1750967939315,0.81915,2440.7,2440.6,1.21179763]
[1750967939518,4.02679,2441.2,2441.1,0.81902]
[1750967939912,5.44899,2441.2,2441.1,0.81902]
[1750967940122,0.81902,2441.1,2441.0,0.81903]
[1750967940329,4.63,2441.2,2441.1,0.81902]
[1750967940622,5.44898,2441.2,2441.1,0.81902]
[1750967941511,0.81902,2441.1,2441.0,6.66]
[1750967942024,0.81902,2441.1,2441.0,7.47903]
[1750967942514,0.81902,2441.1,2441.0,0.81903]
[1750967942720,5.44901,2441.2,2441.1,0.81902]
[1750967943321,0.81902,2441.1,2441.0,32.06]
[1750967943529,0.81912,2440.8,2440.7,1.21179763]
[1750967943721,3.2078,2440.8,2440.4,7.87179763]
[1750967943921,0.81922,2440.5,2440.4,7.87179763]
[1750967944115,0.81922,2440.5,2440.4,8.69104763]
[1750967944416,0.81922,2440.6,2440.5,0.81922]
[1750967944625,0.81922,2440.5,2440.4,7.47923]
[1750967944816,0.81925,2440.4,2440.2,5.14879763]
[1750967945022,0.81925,2440.4,2440.3,7.47828]
[1750967945520,0.81925,2440.4,2440.3,6.659]
[1750967945715,1.4069,2440.6,2440.4,0.81924]
[1750967946018,0.81925,2440.4,2440.3,7.47827]
[1750967946317,0.81925,2440.4,2440.3,6.659]
[1750967946623,0.81925,2440.4,2440.2,1.21179763]
[1750967946624,0.81928,2440.3,2440.2,1.21179763]
[1750967946817,2.22618,2440.3,2440.2,1.21179763]
[1750967947025,7.22618,2440.3,2440.2,1.21179763]
[1750967947224,0.81932,2440.2,2440.1,1.21179763]
[1750967947421,0.81935,2440.1,2440.0,1.21179763]
[1750967947614,0.81942,2439.9,2439.8,32.064]
[1750967948326,0.81942,2439.9,2439.8,6.659]
[1750967948518,4.02722,2439.9,2439.8,6.659]
[1750967949218,0.81952,2439.6,2439.5,33.27079763]
[1750967949418,0.81955,2439.5,2439.4,1.21179763]
[1750967949619,0.81959,2439.4,2439.3,1.21179763]
[1750967949821,0.81959,2439.4,2439.2,1.21179763]
[1750967949822,0.81962,2439.3,2439.2,1.21179763]
[1750967950018,0.81962,2439.3,2439.1,8.27692587]
[1750967950019,0.81965,2439.2,2439.1,6.66]
[1750967950213,0.81972,2439.0,2438.9,1.21179763]
[1750967950428,0.81975,2438.9,2438.8,33.28079763]
[1750967950621,0.81975,2438.9,2438.8,32.069]
[1750967950921,1.3653,2438.9,2438.8,32.078]
[1750967951126,2.18505,2438.9,2438.8,32.078]
[1750967951416,0.81979,2438.8,2438.7,49.8928]
[1750967951617,0.81979,2438.8,2438.7,81.9628]
[1750967951825,2.18507,2438.9,2438.7,82.78262]
[1750967952016,0.81979,2438.8,2438.7,81.9628]
[1750967952218,1.3653,2438.9,2438.7,82.78262]
[1750967952523,1.3653,2438.9,2438.4,2.69559763]
[1750967952718,0.8198,2438.8,2438.6,0.81982]
[1750967952912,2.18507,2438.9,2438.7,0.81981]
[1750967953114,0.81979,2438.8,2438.6,0.81983]
[1750967953515,1.3653,2438.9,2438.5,32.07]
[1750967953714,2.18507,2438.9,2438.7,0.81982]
[1750967953914,2.18507,2438.9,2438.5,32.07]
[1750967953915,0.81979,2438.8,2438.6,0.81983]
[1750967954216,0.8198,2438.8,2438.6,0.81985]